fUSD/lending_fUSD_20240210
["ID","MTS","AMOUNT","RATE_DAILY","PERIOD"]
[313689944,1707587219535,-1214.77,0.00039178,30]
[313689945,1707587219563,-1096.05,0.00039178,30]
[313689946,1707587219592,-855.36,0.00039178,30]
[313689947,1707587219621,-500.0,0.00039178,30]
[313689948,1707587219650,-693.6,0.00039178,30]
[313689949,1707587219685,-626.03,0.00039178,30]
[313689950,1707587219716,-500.0,0.00039178,30]
[313689951,1707587219749,-500.0,0.00039178,30]
[313689952,1707587219781,-1343.72,0.00039178,30]
[313689953,1707587219809,-500.0,0.00039178,30]
[313689954,1707587219836,-3451.1,0.00039178,30]
[313689955,1707587219865,-500.0,0.00039178,30]
[313689956,1707587219892,-500.0,0.00039178,30]
[313689957,1707587219920,-500.0,0.00039178,30]
[313689958,1707587219948,-500.0,0.00039178,30]
[313689959,1707587219975,-630.33,0.00039178,30]
[313689960,1707587220003,-1359.44,0.00039178,30]
[313689961,1707587220030,-617.86,0.00039178,30]
[313689962,1707587220058,-746.23,0.00039178,30]
[313689963,1707587220087,-500.0,0.00039178,30]
[313689964,1707587220115,-500.0,0.00039178,30]
[313689965,1707587220142,-500.0,0.00039178,30]
[313689966,1707587220170,-712.75,0.00039178,30]
[313689967,1707587220197,-849.56,0.00039178,30]
[313689968,1707587220225,-1189.34,0.00039178,30]
[313689969,1707587220252,-515.6,0.00039178,30]
[313689970,1707587220280,-500.0,0.00039178,30]
[313689971,1707587220307,-500.0,0.00039178,30]
[313689972,1707587220334,-500.0,0.00039178,30]
[313689973,1707587220362,-731.92,0.00039178,30]
[313689974,1707587220393,-1114.3,0.00039178,30]
[313689975,1707587220420,-500.0,0.00039178,30]
[313689976,1707587220449,-500.0,0.00039178,30]
[313689977,1707587220481,-500.0,0.00039178,30]
[313689978,1707587220510,-500.0,0.00039178,30]
[313689979,1707587220540,-1121.74,0.00039178,30]
[313689980,1707587220568,-525.58,0.00039178,30]
[313689981,1707587220601,-977.73,0.00039178,30]
[313689982,1707587220628,-500.0,0.00039178,30]
[313689983,1707587220657,-561.13,0.00039178,30]
[313689984,1707587220684,-947.65,0.00039178,30]
[313689985,1707587220713,-1026.02,0.00039178,30]
[313689986,1707587220741,-500.0,0.00039178,30]
[313689987,1707587220771,-500.0,0.00039178,30]
[313689988,1707587220802,-1242.56,0.00039178,30]
[313689989,1707587220989,-645.83,0.00039178,30]
[313689990,1707587221023,-1691.5,0.00039178,30]
[313689991,1707587221050,-500.0,0.00039178,30]
[313689992,1707587221076,-500.0,0.00039178,30]
[313689993,1707587221104,-500.0,0.00039178,30]
[313689994,1707587221132,-500.0,0.00039178,30]
[313689995,1707587221159,-500.0,0.00039178,30]
[313689996,1707587221187,-873.15,0.00039178,30]
[313689997,1707587221219,-500.0,0.00039178,30]
[313689998,1707587221246,-708.27,0.00039178,30]
[313689999,1707587221274,-529.55,0.00039178,30]
[313690000,1707587221301,-779.81,0.00039178,30]
[313690001,1707587221328,-1056.2,0.00039178,30]
[313690002,1707587221355,-500.0,0.00039178,30]
[313690003,1707587221382,-500.0,0.00039178,30]
[313690004,1707587221409,-519.82,0.00039178,30]
[313690005,1707587221437,-970.19,0.00039178,30]
[313690006,1707587221464,-678.81,0.00039178,30]
[313690007,1707587221492,-500.0,0.00039178,30]
[313690008,1707587221521,-705.9,0.00039178,30]
[313690009,1707587221548,-1052.93,0.00039178,30]
[313690010,1707587221577,-500.0,0.00039178,30]
[313690011,1707587221610,-500.0,0.00039178,30]
[313690012,1707587221637,-500.0,0.00039178,30]
[313690013,1707587221665,-684.62,0.00039178,30]
[313690014,1707587221693,-1004.11,0.00039178,30]
[313690015,1707587221721,-711.92,0.00039178,30]
[313690016,1707587221747,-500.0,0.00039178,30]
[313690017,1707587221773,-635.89179134,0.00039178,30]
[313690018,1707587221800,-667.08,0.00039178,30]
[313690019,1707587221827,-754.28,0.00039178,30]
[313690020,1707587221855,-500.0,0.00039178,30]
[313690021,1707587221882,-500.0,0.00039178,30]
[313690022,1707587221909,-500.0,0.00039178,30]
[313690023,1707587221937,-500.0,0.00039178,30]
[313690024,1707587221964,-500.0,0.00039178,30]
[313690025,1707587221991,-725.08,0.00039178,30]
[313690026,1707587222018,-500.0,0.00039178,30]
[313690027,1707587222045,-509.63,0.00039178,30]
[313690028,1707587222072,-1382.71,0.00039178,30]
[313690029,1707587222100,-433.59541701,0.00039178,30]
[313690030,1707587222127,-1447.85,0.00039178,30]
[313690031,1707587222157,-1223.13,0.00039178,30]
[313690032,1707587222185,-2091.65,0.00039178,30]
[313690033,1707587222214,-500.0,0.00039178,30]
[313690034,1707587222242,-611.01,0.00039178,30]
[313690035,1707587222270,-969.91,0.00039178,30]
[313690036,1707587222298,-1057.09,0.00039178,30]
[313690037,1707587222325,-500.0,0.00039178,30]
[313690038,1707587222354,-672.89,0.00039178,30]
[313690039,1707587222381,-250.0,0.00039178,30]
[313690040,1707587222411,-500.0,0.00039178,30]
[313690041,1707587222437,-500.0,0.00039178,30]
[313690042,1707587222464,-317.3737185,0.00039178,30]
[313690043,1707587222492,-1517.8,0.00039178,30]
[313690044,1707587222520,-1316.97,0.00039178,30]
[313690045,1707587222548,-500.0,0.00039178,30]
[313690046,1707587222575,-738.23,0.00039178,30]
[313690047,1707587222604,-500.0,0.00039178,30]
[313690048,1707587222632,-1065.11,0.00039178,30]
[313690049,1707587222666,-1631.07,0.00039178,30]
[313690050,1707587222700,-500.0,0.00039178,30]
[313690051,1707587222731,-500.0,0.00039178,30]
[313690052,1707587222759,-500.0,0.00039178,30]
[313690053,1707587222786,-500.0,0.00039178,30]
[313690054,1707587222813,-706.87,0.00039178,30]
[313690055,1707587222839,-765.85,0.00039178,30]
[313690056,1707587222866,-426.28721537,0.00039178,30]
[313690057,1707587222893,-1109.61,0.00039178,30]
[313690058,1707587222920,-1493.22,0.00039178,30]
[313690059,1707587222947,-500.0,0.00039178,30]
[313690060,1707587222978,-500.0,0.00039178,30]
[313690061,1707587223006,-500.0,0.00039178,30]
[313690062,1707587223034,-1173.55,0.00039178,30]
[313690063,1707587223061,-514.5,0.00039178,30]
[313690064,1707587223089,-2263.23,0.00039178,30]
[313690065,1707587223117,-628.62,0.00039178,30]
[313690066,1707587223145,-500.0,0.00039178,30]
[313690067,1707587223173,-1076.65,0.00039178,30]
[313690068,1707587223203,-500.0,0.00039178,30]
[313690069,1707587223238,-1197.78,0.00039178,30]
[313690070,1707587223268,-1543.54,0.00039178,30]
[313690071,1707587223303,-500.0,0.00039178,30]
[313690072,1707587223331,-500.0,0.00039178,30]
[313690073,1707587223361,-1126.72,0.00039178,30]
[313690074,1707587223390,-500.0,0.00039178,30]
[313690075,1707587223418,-500.0,0.00039178,30]
[313690076,1707587223447,-500.0,0.00039178,30]
[313690077,1707587223479,-574.65,0.00039178,30]
[313690078,1707587223511,-1151.29,0.00039178,30]
[313690079,1707587223711,-1633.0,0.00039178,30]
[313690080,1707587223743,-1001.15,0.00039178,30]
[313690081,1707587223774,-500.0,0.00039178,30]
[313690082,1707587223806,-500.0,0.00039178,30]
[313690083,1707587223844,-631.57,0.00039178,30]
[313690084,1707587223876,-500.0,0.00039178,30]
[313690085,1707587223908,-500.0,0.00039178,30]
[313690086,1707587223939,-500.0,0.00039178,30]
[313690087,1707587223970,-500.0,0.00039178,30]
[313690088,1707587224000,-614.75833223,0.00039178,30]
[313690089,1707587224032,-500.0,0.00039178,30]
[313690090,1707587224063,-1429.03,0.00039178,30]
[313690091,1707587224094,-2260.97,0.00039178,30]
[313690092,1707587224126,-500.0,0.00039178,30]
[313690093,1707587224156,-517.54,0.00039178,30]
[313690094,1707587224188,-500.0,0.00039178,30]
[313690095,1707587224223,-7649.15,0.00039178,30]
[313690096,1707587224256,-500.0,0.00039178,30]
[313690097,1707587224289,-623.04,0.00039178,30]
[313690098,1707587224319,-500.0,0.00039178,30]
[313690099,1707587224351,-500.0,0.00039178,30]
[313690100,1707587224386,-500.0,0.00039178,30]
[313690101,1707587224419,-500.0,0.00039178,30]
[313690102,1707587224450,-1193.5,0.00039178,30]
[313690103,1707587224482,-500.0,0.00039178,30]
[313690104,1707587224517,-648.02,0.00039178,30]
[313690105,1707587224547,-1288.88,0.00039178,30]
[313690106,1707587224580,-640.03,0.00039178,30]
[313690107,1707587224614,-500.0,0.00039178,30]
[313690108,1707587224640,-500.0,0.00039178,30]
[313690109,1707587224672,-500.0,0.00039178,30]
[313690110,1707587224705,-1073.46,0.00039178,30]
[313690111,1707587224733,-500.0,0.00039178,30]
[313690112,1707587224764,-2073.35,0.00039178,30]
[313690113,1707587224792,-594.62649777,0.00039178,30]
[313690114,1707587224824,-500.0,0.00039178,30]
[313690115,1707587224852,-1221.03,0.00039178,30]
[313690116,1707587224884,-1706.51,0.00039178,30]
[313690117,1707587224915,-577.01,0.00039178,30]
[313690118,1707587224947,-500.0,0.00039178,30]
[313690119,1707587224978,-500.0,0.00039178,30]
[313690120,1707587225012,-500.0,0.00039178,30]
[313690121,1707587225044,-500.0,0.00039178,30]
[313690122,1707587225078,-616.62,0.00039178,30]
[313690123,1707587225113,-500.0,0.00039178,30]
[313690124,1707587225144,-500.0,0.00039178,30]
[313690125,1707587225177,-500.0,0.00039178,30]
[313690126,1707587225207,-500.0,0.00039178,30]
[313690127,1707587225236,-500.0,0.00039178,30]
[313690128,1707587225265,-1296.34,0.00039178,30]
[313690129,1707587225297,-500.0,0.00039178,30]
[313690130,1707587225331,-500.0,0.00039178,30]
[313690131,1707587225360,-500.0,0.00039178,30]
[313690132,1707587225390,-2223.99,0.00039178,30]
[313690133,1707587225419,-2222.55,0.00039178,30]
[313690134,1707587225448,-500.0,0.00039178,30]
[313690135,1707587225477,-3802.28,0.00039178,30]
[313690136,1707587225506,-500.0,0.00039178,30]
[313690137,1707587225535,-677.17,0.00039178,30]
[313690138,1707587225564,-762.41,0.00039178,30]
[313690139,1707587225593,-1153.81,0.00039178,30]
[313690140,1707587225624,-500.0,0.00039178,30]
[313690141,1707587225658,-342.14528076,0.00039178,30]
[313690142,1707587225691,-984.72,0.00039178,30]
[313690143,1707587225721,-500.0,0.00039178,30]
[313690144,1707587225753,-1103.08,0.00039178,30]
[313690145,1707587225786,-500.0,0.00039178,30]
[313690146,1707587225814,-1897.56,0.00039178,30]
[313690147,1707587225842,-513.79,0.00039178,30]
[313690148,1707587225870,-555.2,0.00039178,30]
[313690149,1707587225898,-500.0,0.00039178,30]
[313690150,1707587225933,-542.42,0.00039178,30]
[313690151,1707587225962,-500.0,0.00039178,30]
[313690152,1707587225990,-573.6,0.00039178,30]
[313690153,1707587226019,-500.0,0.00039178,30]
[313690154,1707587226047,-1256.18,0.00039178,30]
[313690155,1707587226076,-500.0,0.00039178,30]
[313690156,1707587226106,-1448.23,0.00039178,30]
[313690157,1707587226135,-520.16,0.00039178,30]
[313690158,1707587226166,-500.0,0.00039178,30]
[313690159,1707587226195,-500.0,0.00039178,30]
[313690160,1707587226223,-500.0,0.00039178,30]
[313690161,1707587226251,-500.0,0.00039178,30]
[313690162,1707587226279,-1609.58,0.00039178,30]
[313690163,1707587226307,-767.11,0.00039178,30]
[313690164,1707587226336,-666.67,0.00039178,30]
[313690165,1707587226368,-500.0,0.00039178,30]
[313690166,1707587226398,-500.0,0.00039178,30]
[313690167,1707587226426,-980.77,0.00039178,30]
[313690168,1707587226454,-608.8,0.00039178,30]
[313690169,1707587226481,-500.0,0.00039178,30]
[313690170,1707587226510,-1423.85,0.00039178,30]
[313690171,1707587226538,-304.0968099,0.00039178,30]
[313690172,1707587226566,-500.0,0.00039178,30]
[313690173,1707587226597,-500.0,0.00039178,30]
[313690174,1707587226628,-1220.89,0.00039178,30]
[313690175,1707587226656,-500.0,0.00039178,30]
[313690176,1707587226686,-2613.25,0.00039178,30]
[313690177,1707587226714,-271.16,0.00039178,30]
[313690178,1707587226742,-528.73,0.00039178,30]
[313690179,1707587226769,-500.0,0.00039178,30]
[313690180,1707587226797,-1293.06,0.00039178,30]
[313690181,1707587226826,-627.76,0.00039178,30]
[313690182,1707587226853,-586.63,0.00039178,30]
[313690183,1707587227044,-1595.18,0.00039178,30]
[313690184,1707587227072,-1575.17,0.00039178,30]
[313690185,1707587227100,-2251.38,0.00039178,30]
[313690186,1707587227128,-500.0,0.00039178,30]
[313690187,1707587227156,-500.0,0.00039178,30]
[313690188,1707587227185,-500.0,0.00039178,30]
[313690189,1707587227217,-510.3346675,0.00039178,30]
[313690190,1707587227244,-500.0,0.00039178,30]
[313690191,1707587227272,-500.0,0.00039178,30]
[313690192,1707587227300,-2197.66,0.00039178,30]
[313690193,1707587227329,-500.0,0.00039178,30]
[313690194,1707587227359,-849.0,0.00039178,30]
[313690195,1707587227388,-1049.96,0.00039178,30]
[313690196,1707587227416,-500.0,0.00039178,30]
[313690197,1707587227443,-551.19,0.00039178,30]
[313690198,1707587227471,-1051.07,0.00039178,30]
[313690199,1707587227498,-529.49,0.00039178,30]
[313690200,1707587227525,-500.0,0.00039178,30]
[313690201,1707587227553,-969.21,0.00039178,30]
[313690202,1707587227579,-2142.16,0.00039178,30]
[313690203,1707587227611,-651.01,0.00039178,30]
[313690204,1707587227639,-962.3,0.00039178,30]
[313690205,1707587227666,-1257.96,0.00039178,30]
[313690206,1707587227695,-847.82,0.00039178,30]
[313690207,1707587227723,-500.0,0.00039178,30]
[313690208,1707587227751,-500.0,0.00039178,30]
[313690209,1707587227779,-457.79,0.00039178,30]
[313690210,1707587227807,-500.0,0.00039178,30]
[313690211,1707587227834,-500.0,0.00039178,30]
[313690212,1707587227862,-500.0,0.00039178,30]
[313690213,1707587227888,-500.0,0.00039178,30]
[313690214,1707587227915,-347.97308224,0.00039178,30]
[313690215,1707587227942,-500.0,0.00039178,30]
[313690216,1707587227970,-500.0,0.00039178,30]
[313690217,1707587227997,-587.75,0.00039178,30]
[313690218,1707587228024,-1504.28,0.00039178,30]
[313690219,1707587228053,-500.0,0.00039178,30]
[313690220,1707587228080,-773.57,0.00039178,30]
[313690221,1707587228107,-1079.05,0.00039178,30]
[313690222,1707587228134,-500.0,0.00039178,30]
[313690223,1707587228161,-1348.64,0.00039178,30]
[313690224,1707587228188,-872.64,0.00039178,30]
[313690225,1707587228217,-1075.53,0.00039178,30]
[313690226,1707587228244,-3976.56,0.00039178,30]
[313690227,1707587228273,-720.38,0.00039178,30]
[313690228,1707587228301,-500.0,0.00039178,30]
[313690229,1707587228329,-500.0,0.00039178,30]
[313690230,1707587228356,-1396.29,0.00039178,30]
[313690231,1707587228385,-500.0,0.00039178,30]
[313690232,1707587228412,-1241.2,0.00039178,30]
[313690233,1707587228440,-500.0,0.00039178,30]
[313690234,1707587228467,-500.0,0.00039178,30]
[313690235,1707587228494,-408.75800548,0.00039178,30]
[313690236,1707587228522,-766.59,0.00039178,30]
[313690237,1707587228548,-878.46,0.00039178,30]
[313690238,1707587228575,-500.0,0.00039178,30]
[313690239,1707587228604,-695.42,0.00039178,30]
[313690240,1707587228631,-500.0,0.00039178,30]
[313690241,1707587228659,-569.84,0.00039178,30]
[313690242,1707587228687,-4903.15,0.00039178,30]
[313690243,1707587228715,-500.0,0.00039178,30]
[313690244,1707587228743,-514.73,0.00039178,30]
[313690245,1707587228771,-2462.27,0.00039178,30]
[313690246,1707587228798,-3083.4,0.00039178,30]
[313690247,1707587228825,-500.0,0.00039178,30]
[313690248,1707587228852,-500.0,0.00039178,30]
[313690249,1707587228879,-855.61,0.00039178,30]
[313690250,1707587228906,-500.0,0.00039178,30]
[313690251,1707587228935,-527.2,0.00039178,30]
[313690252,1707587228962,-500.0,0.00039178,30]
[313690253,1707587228989,-500.0,0.00039178,30]
[313690254,1707587229017,-500.0,0.00039178,30]
[313690255,1707587229044,-500.0,0.00039178,30]
[313690256,1707587229076,-500.0,0.00039178,30]
[313690257,1707587229104,-500.0,0.00039178,30]
[313690258,1707587229131,-500.0,0.00039178,30]
[313690259,1707587229160,-2292.11,0.00039178,30]
[313690260,1707587229189,-500.0,0.00039178,30]
[313690261,1707587229218,-500.0,0.00039178,30]
[313690262,1707587229246,-500.0,0.00039178,30]
[313690263,1707587229275,-558.21,0.00039178,30]
[313690264,1707587229305,-537.38,0.00039178,30]
[313690265,1707587229336,-500.0,0.00039178,30]
[313690266,1707587229365,-500.0,0.00039178,30]
[313690267,1707587229392,-500.0,0.00039178,30]
[313690268,1707587229420,-940.17,0.00039178,30]
[313690269,1707587229447,-500.0,0.00039178,30]
[313690270,1707587229474,-2058.09,0.00039178,30]
[313690271,1707587229501,-500.0,0.00039178,30]
[313690272,1707587229528,-500.0,0.00039178,30]
[313690273,1707587229555,-500.0,0.00039178,30]
[313690274,1707587229582,-565.88,0.00039178,30]
[313690275,1707587229617,-1653.34,0.00039178,30]
[313690276,1707587229644,-533.26,0.00039178,30]
[313690277,1707587229672,-500.0,0.00039178,30]
[313690278,1707587229700,-500.0,0.00039178,30]
[313690279,1707587229729,-500.0,0.00039178,30]
[313690280,1707587229758,-500.0,0.00039178,30]
[313690281,1707587229787,-507.56,0.00039178,30]
[313690282,1707587229816,-845.59,0.00039178,30]
[313690283,1707587229843,-500.0,0.00039178,30]
[313690284,1707587229870,-500.0,0.00039178,30]
[313690285,1707587229898,-500.0,0.00039178,30]
[313690286,1707587229926,-653.17,0.00039178,30]
[313690287,1707587230111,-500.0,0.00039178,30]
[313690288,1707587230141,-249.84,0.00039178,30]
[313690289,1707587230171,-500.0,0.00039452,30]
[313690290,1707587230199,-500.0,0.00039452,30]
[313690291,1707587230228,-500.0,0.00039452,30]
[313690292,1707587230255,-500.0,0.00039452,30]
[313690293,1707587230283,-500.0,0.00039452,30]
[313690294,1707587230310,-500.0,0.00039452,30]
[313690295,1707587230338,-500.0,0.00039452,30]
[313690296,1707587230365,-500.0,0.00039452,30]
[313690297,1707587230392,-504.8,0.00039452,30]
[313690298,1707587230420,-652.52,0.00039452,30]
[313690299,1707587230446,-500.0,0.00039452,30]
[313690300,1707587230477,-500.0,0.00039452,30]
[313690301,1707587230505,-561.48,0.00039452,30]
[313690302,1707587230533,-1033.9,0.00039452,30]
[313690303,1707587230560,-500.0,0.00039452,30]
[313690304,1707587230587,-500.0,0.00039452,30]
[313690305,1707587230621,-518.72,0.00039452,30]
[313690306,1707587230649,-500.0,0.00039452,30]
[313690307,1707587230677,-587.82,0.00039452,30]
[313690308,1707587230706,-861.1,0.00039452,30]
[313690309,1707587230733,-500.0,0.00039452,30]
[313690310,1707587230762,-500.0,0.00039452,30]
[313690311,1707587230791,-843.13,0.00039452,30]
[313690312,1707587230819,-539.79,0.00039452,30]
[313690313,1707587230847,-500.0,0.00039452,30]
[313690314,1707587230875,-500.0,0.00039452,30]
[313690315,1707587230902,-653.82,0.00039452,30]
[313690316,1707587230931,-540.63,0.00039452,30]
[313690317,1707587230959,-741.12,0.00039452,30]
[313690318,1707587230986,-500.0,0.00039452,30]
[313690319,1707587231014,-500.0,0.00039452,30]
[313690320,1707587231040,-541.13423064,0.00039452,30]
[313690321,1707587231068,-500.0,0.00039452,30]
[313690322,1707587231095,-500.0,0.00039452,30]
[313690323,1707587231123,-500.0,0.00039452,30]
[313690324,1707587231150,-500.0,0.00039452,30]
[313690325,1707587231178,-500.0,0.00039452,30]
[313690326,1707587231204,-641.35,0.00039452,30]
[313690327,1707587231232,-594.09,0.00039452,30]
[313690328,1707587231259,-500.0,0.00039452,30]
[313690329,1707587231286,-500.0,0.00039452,30]
[313690330,1707587231313,-500.0,0.00039452,30]
[313690331,1707587231341,-500.0,0.00039452,30]
[313690332,1707587231369,-500.0,0.00039452,30]
[313690333,1707587231396,-500.0,0.00039452,30]
[313690334,1707587231423,-500.0,0.00039452,30]
[313690335,1707587231451,-500.0,0.00039452,30]
[313690336,1707587231478,-500.0,0.00039452,30]
[313690337,1707587231505,-531.35,0.00039452,30]
[313690338,1707587231533,-500.0,0.00039452,30]
[313690339,1707587231560,-500.0,0.00039452,30]
[313690340,1707587231587,-500.0,0.00039452,30]
[313690341,1707587231822,-500.0,0.00039452,30]
[313690342,1707587231851,-500.0,0.00039452,30]
[313690343,1707587231878,-500.0,0.00039452,30]
[313690344,1707587231905,-500.0,0.00039452,30]
[313690345,1707587231932,-670.38,0.00039452,30]
[313690346,1707587231959,-500.0,0.00039452,30]
[313690347,1707587231986,-500.0,0.00039452,30]
[313690348,1707587232013,-501.65,0.00039452,30]
[313690349,1707587232041,-816.25,0.00039452,30]
[313690350,1707587232069,-530.59,0.00039452,30]
[313690351,1707587232097,-500.0,0.00039452,30]
[313690352,1707587232125,-500.0,0.00039452,30]
[313690353,1707587232154,-500.0,0.00039452,30]
[313690354,1707587232183,-512.75,0.00039452,30]
[313690355,1707587232211,-500.0,0.00039452,30]
[313690356,1707587232240,-693.12,0.00039452,30]
[313690357,1707587232270,-500.0,0.00039452,30]
[313690358,1707587232298,-500.0,0.00039452,30]
[313690359,1707587232327,-638.48,0.00039452,30]
[313690360,1707587232355,-500.0,0.00039452,30]
[313690361,1707587232384,-500.0,0.00039452,30]
[313690362,1707587232411,-500.0,0.00039452,30]
[313690363,1707587232439,-1084.73,0.00039452,30]
[313690364,1707587232466,-500.0,0.00039452,30]
[313690365,1707587232492,-500.0,0.00039452,30]
[313690366,1707587232519,-512.53723513,0.00039452,30]
[313690367,1707587232546,-538.43,0.00039452,30]
[313690368,1707587232573,-666.78,0.00039452,30]
[313690369,1707587232604,-542.98,0.00039452,30]
[313690370,1707587232633,-500.0,0.00039452,30]
[313690371,1707587232662,-500.0,0.00039452,30]
[313690372,1707587232691,-538.79,0.00039452,30]
[313690373,1707587232717,-500.0,0.00039452,30]
[313690374,1707587232745,-500.0,0.00039452,30]
[313690375,1707587232774,-609.14,0.00039452,30]
[313690376,1707587232802,-500.0,0.00039452,30]
[313690377,1707587232829,-500.0,0.00039452,30]
[313690378,1707587232857,-500.0,0.00039452,30]
[313690379,1707587232884,-500.0,0.00039452,30]
[313690380,1707587232911,-500.0,0.00039452,30]
[313690381,1707587232938,-500.0,0.00039452,30]
[313690382,1707587232964,-500.0,0.00039452,30]
[313690383,1707587232991,-500.0,0.00039452,30]
[313690384,1707587233020,-700.22,0.00039452,30]
[313690385,1707587233047,-650.62,0.00039452,30]
[313690386,1707587233073,-500.62,0.00039452,30]
[313690387,1707587233099,-500.0,0.00039452,30]
[313690388,1707587233129,-500.0,0.00039452,30]
[313690389,1707587233157,-500.0,0.00039452,30]
[313690390,1707587233184,-500.0,0.00039452,30]
[313690391,1707587233369,-500.0,0.00039452,30]
[313690392,1707587233400,-743.57,0.00039452,30]
[313690393,1707587233429,-696.24,0.00039452,30]
[313690394,1707587233458,-500.0,0.00039452,30]
[313690395,1707587233485,-583.97,0.00039452,30]
[313690396,1707587233513,-500.0,0.00039452,30]
[313690397,1707587233541,-794.2,0.00039452,30]
[313690398,1707587233568,-500.0,0.00039452,30]
[313690399,1707587233596,-500.0,0.00039452,30]
[313690400,1707587233627,-500.0,0.00039452,30]
[313690401,1707587233655,-293.84,0.00039452,30]
[313690402,1707587233684,-500.0,0.00039452,30]
[313690403,1707587233713,-1137.16,0.00039452,30]
[313690404,1707587233741,-500.0,0.00039452,30]
[313690405,1707587233769,-500.0,0.00039452,30]
[313690406,1707587233796,-500.0,0.00039452,30]
[313690407,1707587233824,-1314.29,0.00039452,30]
[313690408,1707587233852,-1066.72,0.00039452,30]
[313690409,1707587233880,-500.0,0.00039452,30]
[313690410,1707587233907,-500.0,0.00039452,30]
[313690411,1707587233936,-500.0,0.00039452,30]
[313690412,1707587233967,-500.0,0.00039452,30]
[313690413,1707587233996,-500.0,0.00039452,30]
[313690414,1707587234024,-533.56,0.00039452,30]
[313690415,1707587234052,-500.0,0.00039452,30]
[313690416,1707587234080,-500.0,0.00039452,30]
[313690417,1707587234109,-500.0,0.00039452,30]
[313690418,1707587234137,-500.0,0.00039452,30]
[313690419,1707587234165,-500.0,0.00039452,30]
[313690420,1707587234193,-500.0,0.00039452,30]
[313690421,1707587234221,-500.0,0.00039452,30]
[313690422,1707587234249,-500.0,0.00039452,30]
[313690423,1707587234277,-678.24,0.00039452,30]
[313690424,1707587234331,-207.44213083,0.00039452,30]
[313690425,1707587234360,-500.0,0.00039452,30]
[313690426,1707587234389,-500.0,0.00039452,30]
[313690427,1707587234416,-500.0,0.00039452,30]
[313690428,1707587234444,-201.83605023,0.00039452,30]
[313690429,1707587234472,-500.0,0.00039452,30]
[313690430,1707587234499,-415.72,0.00039452,30]
[313690431,1707587234526,-513.21,0.00039452,30]
[313690432,1707587234555,-500.0,0.00039452,30]
[313690433,1707587234582,-500.0,0.00039452,30]
[313690434,1707587234610,-500.0,0.00039452,30]
[313690435,1707587234637,-500.0,0.00039452,30]
[313690436,1707587234666,-500.0,0.00039452,30]
[313690437,1707587234694,-1052.2,0.00039452,30]
[313690438,1707587234721,-506.34,0.00039452,30]
[313690439,1707587234748,-500.0,0.00039452,30]
[313690440,1707587234777,-500.0,0.00039452,30]
[313690441,1707587234804,-500.0,0.00039452,30]
[313690442,1707587234831,-707.55,0.00039452,30]
[313690443,1707587234861,-836.27,0.00039452,30]